[Event "Titled Tuesday Blitz April 18 Late 2023"]
[White "ayme97"]
[Black "Meunier-Pion, Jean"]
[BlackFideId "20685327"]
[WhiteElo "2224"]
[BlackElo "2124"]
[Result "0-1"]
[Round "07"]
[TimeControl "180+2"]
[Date "2023.04.18"]
[WhiteClock "0:00:16"]
[BlackClock "0:00:20"]

1. d4 {[%clk 0:03:00]}  Nf6 {[%clk 0:02:59]} 2. c4 {[%clk 0:03:01]}  e6 {[%clk 0:03:00]} 3. Nf3 {[%clk 0:02:56]}  b6 {[%clk 0:03:00]} 4. Nc3 {[%clk 0:02:54]}  Bb4 {[%clk 0:02:59]} 5. Qc2 {[%clk 0:02:54]}  Bb7 {[%clk 0:02:59]} 6. Bg5 {[%clk 0:02:54]}  h6 {[%clk 0:02:53]} 7. Bxf6 {[%clk 0:02:53]}  Qxf6 {[%clk 0:02:54]} 8. e4 {[%clk 0:02:53]}  d5 {[%clk 0:02:54]} 9. e5 {[%clk 0:02:50]}  Qd8 {[%clk 0:02:49]} 10. Qa4+ {[%clk 0:02:49]}  Nc6 {[%clk 0:02:48]} 11. cxd5 {[%clk 0:02:48]}  Qxd5 {[%clk 0:02:47]} 12. Bb5 {[%clk 0:02:46]}  Qe4+ {[%clk 0:02:39]} 13. Kf1 {[%clk 0:02:40]}  Bxc3 {[%clk 0:02:36]} 14. bxc3 {[%clk 0:02:38]}  a6 {[%clk 0:02:28]} 15. Be2 {[%clk 0:02:28]}  O-O {[%clk 0:02:18]} 16. h4 {[%clk 0:02:24]}  Nxe5 {[%clk 0:02:00]} 17. Qd1 {[%clk 0:02:09]}  Ng6 {[%clk 0:01:39]} 18. Bd3 {[%clk 0:02:04]}  Qg4 {[%clk 0:01:28]} 19. Rh3 {[%clk 0:01:52]}  Nf4 {[%clk 0:01:05]} 20. Rg3 {[%clk 0:01:45]}  Qh5 {[%clk 0:00:48]} 21. Kg1 {[%clk 0:01:24]}  Nxd3 {[%clk 0:00:46]} 22. Qxd3 {[%clk 0:01:23]}  Bxf3 {[%clk 0:00:43]} 23. Qxf3 {[%clk 0:01:22]}  Qxf3 {[%clk 0:00:35]} 24. Rxf3 {[%clk 0:01:20]}  Rfd8 {[%clk 0:00:35]} 25. Rb1 {[%clk 0:01:14]}  Rd5 {[%clk 0:00:36]} 26. g3 {[%clk 0:01:06]}  Rad8 {[%clk 0:00:36]} 27. Rf4 {[%clk 0:01:02]}  Ra5 {[%clk 0:00:25]} 28. Rb2 {[%clk 0:01:00]}  Ra3 {[%clk 0:00:25]} 29. Rf3 {[%clk 0:00:57]}  Rxd4 {[%clk 0:00:20]} 30. cxd4 {[%clk 0:00:53]}  Rxf3 {[%clk 0:00:21]} 31. Rc2 {[%clk 0:00:53]}  Ra3 {[%clk 0:00:22]} 32. Kf1 {[%clk 0:00:39]}  Kf8 {[%clk 0:00:21]} 33. Ke2 {[%clk 0:00:36]}  Ke8 {[%clk 0:00:22]} 34. Rxc7 {[%clk 0:00:35]}  Rxa2+ {[%clk 0:00:22]} 35. Ke3 {[%clk 0:00:35]}  a5 {[%clk 0:00:17]} 36. Rc8+ {[%clk 0:00:33]}  Kd7 {[%clk 0:00:16]} 37. Rf8 {[%clk 0:00:32]}  Ke7 {[%clk 0:00:17]} 38. Rg8 {[%clk 0:00:32]}  g6 {[%clk 0:00:17]} 39. h5 {[%clk 0:00:25]}  gxh5 {[%clk 0:00:17]} 40. Rh8 {[%clk 0:00:25]}  a4 {[%clk 0:00:17]} 41. Rxh6 {[%clk 0:00:24]}  Rb2 {[%clk 0:00:15]} 42. Rxh5 {[%clk 0:00:23]}  a3 {[%clk 0:00:15]} 43. Rh8 {[%clk 0:00:21]}  Rb5 {[%clk 0:00:15]} 44. Rh1 {[%clk 0:00:19]}  a2 {[%clk 0:00:15]} 45. Ra1 {[%clk 0:00:19]}  Ra5 {[%clk 0:00:15]} 46. Kd3 {[%clk 0:00:19]}  Kd6 {[%clk 0:00:16]} 47. Kc4 {[%clk 0:00:18]}  Kc6 {[%clk 0:00:14]} 48. f4 {[%clk 0:00:15]}  f5 {[%clk 0:00:13]} 49. Kb3 {[%clk 0:00:12]}  Kd5 {[%clk 0:00:12]} 50. Rxa2 {[%clk 0:00:11]}  Rxa2 {[%clk 0:00:12]} 51. Kxa2 {[%clk 0:00:12]}  Kxd4 {[%clk 0:00:13]} 52. Kb3 {[%clk 0:00:13]}  Ke3 {[%clk 0:00:14]} 53. Kb4 {[%clk 0:00:10]}  Kf3 {[%clk 0:00:14]} 54. Kb5 {[%clk 0:00:11]}  Kxg3 {[%clk 0:00:14]} 55. Kxb6 {[%clk 0:00:12]}  Kxf4 {[%clk 0:00:15]} 56. Kc6 {[%clk 0:00:12]}  e5 {[%clk 0:00:15]} 57. Kd6 {[%clk 0:00:13]}  e4 {[%clk 0:00:16]} 58. Ke6 {[%clk 0:00:13]}  e3 {[%clk 0:00:17]} 59. Kf6 {[%clk 0:00:14]}  e2 {[%clk 0:00:18]} 60. Kg6 {[%clk 0:00:15]}  e1=Q {[%clk 0:00:19]} 61. Kf6 {[%clk 0:00:16]}  Qe5+ {[%clk 0:00:19]} 62. Kg6 {[%clk 0:00:16]}  Qd6+ {[%clk 0:00:19]} 63. Kh5 {[%clk 0:00:16]}  Qe6 {[%clk 0:00:19]} 64. Kh4 {[%clk 0:00:16]}  Qh6# {[%clk 0:00:20]} 0-1


[Site "https://www.chess.com"]

[Event "Titled Tuesday Blitz April 18 Late 2023"]
[White "Golubev, Mikhail"]
[Black "Winkels, Marcel"]
[WhiteFideId "14100983"]
[BlackFideId "1003887"]
[WhiteElo "2374"]
[BlackElo "1900"]
[Result "0-1"]
[Round "07"]
[TimeControl "180+2"]
[Date "2023.04.18"]
[WhiteClock "0:00:29"]
[BlackClock "0:00:58"]

1. e4 {[%clk 0:03:00]}  c5 {[%clk 0:02:59]} 2. Nf3 {[%clk 0:03:00]}  d6 {[%clk 0:03:00]} 3. d4 {[%clk 0:03:00]}  cxd4 {[%clk 0:03:00]} 4. Nxd4 {[%clk 0:03:01]}  Nf6 {[%clk 0:03:01]} 5. Nc3 {[%clk 0:03:01]}  a6 {[%clk 0:03:01]} 6. Bc4 {[%clk 0:03:01]}  e6 {[%clk 0:03:00]} 7. Bb3 {[%clk 0:03:01]}  Nbd7 {[%clk 0:03:00]} 8. Bg5 {[%clk 0:02:55]}  Nc5 {[%clk 0:02:57]} 9. O-O {[%clk 0:02:53]}  Be7 {[%clk 0:02:54]} 10. Re1 {[%clk 0:02:52]}  O-O {[%clk 0:02:46]} 11. f4 {[%clk 0:02:50]}  Nxb3 {[%clk 0:02:32]} 12. axb3 {[%clk 0:02:48]}  e5 {[%clk 0:02:32]} 13. Nf5 {[%clk 0:01:39]}  Bxf5 {[%clk 0:02:28]} 14. exf5 {[%clk 0:01:39]}  h6 {[%clk 0:02:09]} 15. fxe5 {[%clk 0:01:32]}  dxe5 {[%clk 0:02:08]} 16. Bxf6 {[%clk 0:01:31]}  Qxd1 {[%clk 0:01:56]} 17. Raxd1 {[%clk 0:01:30]}  Bxf6 {[%clk 0:01:56]} 18. Rd7 {[%clk 0:01:22]}  b5 {[%clk 0:01:56]} 19. Ne4 {[%clk 0:01:19]}  Rfd8 {[%clk 0:01:48]} 20. Red1 {[%clk 0:01:19]}  Rxd7 {[%clk 0:01:43]} 21. Rxd7 {[%clk 0:01:19]}  Rc8 {[%clk 0:01:37]} 22. c3 {[%clk 0:01:20]}  Bg5 {[%clk 0:01:03]} 23. Nd6 {[%clk 0:00:31]}  Rf8 {[%clk 0:00:59]} 24. Ra7 {[%clk 0:00:29]}  Be3+ {[%clk 0:00:58]} 0-1


[Site "https://www.chess.com"]

[Event "Titled Tuesday Blitz April 18 Late 2023"]
[White "Skaric, Djuro"]
[Black "brm72"]
[WhiteFideId "934569"]
[WhiteElo "2282"]
[BlackElo "2579"]
[Result "1-0"]
[Round "07"]
[TimeControl "180+2"]
[Date "2023.04.18"]
[WhiteClock "0:01:00"]
[BlackClock "0:00:03"]

1. g3 {[%clk 0:03:00]}  Nf6 {[%clk 0:02:59]} 2. Bg2 {[%clk 0:03:01]}  d5 {[%clk 0:03:00]} 3. d3 {[%clk 0:03:02]}  g6 {[%clk 0:03:00]} 4. Nf3 {[%clk 0:03:02]}  Bg7 {[%clk 0:03:01]} 5. O-O {[%clk 0:03:03]}  O-O {[%clk 0:03:01]} 6. h3 {[%clk 0:03:03]}  c5 {[%clk 0:03:01]} 7. Nc3 {[%clk 0:03:04]}  Nc6 {[%clk 0:03:01]} 8. e4 {[%clk 0:03:04]}  e6 {[%clk 0:03:02]} 9. g4 {[%clk 0:03:04]}  a5 {[%clk 0:03:01]} 10. g5 {[%clk 0:03:03]}  Ne8 {[%clk 0:02:42]} 11. Re1 {[%clk 0:03:00]}  Nc7 {[%clk 0:02:39]} 12. e5 {[%clk 0:03:00]}  b5 {[%clk 0:02:39]} 13. h4 {[%clk 0:02:59]}  b4 {[%clk 0:02:39]} 14. Nb1 {[%clk 0:02:58]}  a4 {[%clk 0:02:39]} 15. Bf4 {[%clk 0:02:58]}  a3 {[%clk 0:02:39]} 16. bxa3 {[%clk 0:02:56]}  bxa3 {[%clk 0:02:38]} 17. Nbd2 {[%clk 0:02:54]}  Nb5 {[%clk 0:02:28]} 18. Nb3 {[%clk 0:02:51]}  Qe7 {[%clk 0:02:23]} 19. c4 {[%clk 0:02:50]}  Nbd4 {[%clk 0:02:20]} 20. Nbxd4 {[%clk 0:02:44]}  Nxd4 {[%clk 0:02:20]} 21. Nxd4 {[%clk 0:02:39]}  cxd4 {[%clk 0:02:21]} 22. cxd5 {[%clk 0:02:39]}  exd5 {[%clk 0:02:21]} 23. Bxd5 {[%clk 0:02:39]}  Ra5 {[%clk 0:02:20]} 24. Qb3 {[%clk 0:02:36]}  Bf5 {[%clk 0:02:10]} 25. Rac1 {[%clk 0:02:17]}  Rd8 {[%clk 0:01:52]} 26. Bc4 {[%clk 0:02:06]}  Qa7 {[%clk 0:01:11]} 27. e6 {[%clk 0:02:03]}  fxe6 {[%clk 0:01:07]} 28. Bxe6+ {[%clk 0:02:03]}  Bxe6 {[%clk 0:01:07]} 29. Rxe6 {[%clk 0:02:00]}  Kh8 {[%clk 0:01:04]} 30. Rce1 {[%clk 0:01:58]}  Rf5 {[%clk 0:00:59]} 31. Re8+ {[%clk 0:01:55]}  Rf8 {[%clk 0:00:58]} 32. Rxd8 {[%clk 0:01:52]}  Rxd8 {[%clk 0:00:58]} 33. Qe6 {[%clk 0:01:47]}  Qa8 {[%clk 0:00:27]} 34. Re4 {[%clk 0:01:41]}  Qb7 {[%clk 0:00:24]} 35. Be5 {[%clk 0:01:29]}  Rg8 {[%clk 0:00:20]} 36. Rxd4 {[%clk 0:01:23]}  Qb1+ {[%clk 0:00:18]} 37. Kg2 {[%clk 0:01:23]}  Qb7+ {[%clk 0:00:17]} 38. Kg3 {[%clk 0:01:22]}  h6 {[%clk 0:00:10]} 39. Bxg7+ {[%clk 0:01:22]}  Rxg7 {[%clk 0:00:08]} 40. gxh6 {[%clk 0:01:19]}  Re7 {[%clk 0:00:08]} 41. Qf6+ {[%clk 0:01:18]}  Kh7 {[%clk 0:00:07]} 42. Rf4 {[%clk 0:01:15]}  Qc7 {[%clk 0:00:07]} 43. h5 {[%clk 0:01:14]}  gxh5 {[%clk 0:00:06]} 44. Kh4 {[%clk 0:01:08]}  Qc5 {[%clk 0:00:03]} 45. Rf5 {[%clk 0:01:06]}  Qb4+ {[%clk 0:00:03]} 46. Kxh5 {[%clk 0:01:04]}  Rd7 {[%clk 0:00:02]} 47. Qg6+ {[%clk 0:01:01]}  Kh8 {[%clk 0:00:03]} 48. Qe8+ {[%clk 0:01:00]} 1-0


[Site "https://www.chess.com"]

[Event "Titled Tuesday Blitz April 18 Late 2023"]
[White "Seder, Mohammed"]
[Black "Hirneise, Jens"]
[WhiteFideId "11505567"]
[BlackFideId "24614734"]
[WhiteElo "1862"]
[BlackElo "2345"]
[Result "0-1"]
[Round "07"]
[TimeControl "180+2"]
[Date "2023.04.18"]
[WhiteClock "0:02:29"]
[BlackClock "0:02:35"]

1. e4 {[%clk 0:03:00]}  c6 {[%clk 0:02:57]} 2. Nf3 {[%clk 0:03:00]}  d5 {[%clk 0:02:57]} 3. Nc3 {[%clk 0:03:00]}  Bg4 {[%clk 0:02:54]} 4. h3 {[%clk 0:02:51]}  Bxf3 {[%clk 0:02:54]} 5. Qxf3 {[%clk 0:02:51]}  e6 {[%clk 0:02:46]} 6. Be2 {[%clk 0:02:51]}  Nf6 {[%clk 0:02:43]} 7. d3 {[%clk 0:02:45]}  Be7 {[%clk 0:02:41]} 8. Qg3 {[%clk 0:02:42]}  O-O {[%clk 0:02:36]} 9. Bh6 {[%clk 0:02:38]}  Ne8 {[%clk 0:02:36]} 10. f4 {[%clk 0:02:29]}  Bh4 {[%clk 0:02:35]} 0-1


[Site "https://www.chess.com"]

[Event "Titled Tuesday Blitz April 18 Late 2023"]
[White "Marchesich, Giovanni"]
[Black "Osmak, Yuliia"]
[WhiteFideId "2824790"]
[BlackFideId "14101602"]
[WhiteElo "2209"]
[BlackElo "2291"]
[Result "0-1"]
[Round "07"]
[TimeControl "180+2"]
[Date "2023.04.18"]
[WhiteClock "0:00:02"]
[BlackClock "0:00:47"]

1. d4 {[%clk 0:03:00]}  Nf6 {[%clk 0:02:59]} 2. Nf3 {[%clk 0:03:00]}  e6 {[%clk 0:02:58]} 3. e3 {[%clk 0:03:00]}  d5 {[%clk 0:02:58]} 4. Bd3 {[%clk 0:03:01]}  c5 {[%clk 0:02:58]} 5. b3 {[%clk 0:03:01]}  Nc6 {[%clk 0:02:58]} 6. Bb2 {[%clk 0:03:01]}  Bd6 {[%clk 0:02:58]} 7. O-O {[%clk 0:03:00]}  O-O {[%clk 0:02:58]} 8. Ne5 {[%clk 0:03:00]}  Qc7 {[%clk 0:02:57]} 9. f4 {[%clk 0:03:00]}  cxd4 {[%clk 0:02:55]} 10. exd4 {[%clk 0:02:51]}  Nb4 {[%clk 0:02:55]} 11. Nc3 {[%clk 0:02:35]}  Nxd3 {[%clk 0:02:55]} 12. Qxd3 {[%clk 0:02:35]}  a6 {[%clk 0:02:50]} 13. Kh1 {[%clk 0:02:12]}  b5 {[%clk 0:02:49]} 14. Nd1 {[%clk 0:02:10]}  Bb7 {[%clk 0:02:48]} 15. Ne3 {[%clk 0:02:09]}  Ne4 {[%clk 0:02:48]} 16. f5 {[%clk 0:02:04]}  Qe7 {[%clk 0:02:31]} 17. Rf3 {[%clk 0:01:23]}  Qh4 {[%clk 0:02:23]} 18. Raf1 {[%clk 0:01:18]}  f6 {[%clk 0:02:15]} 19. g3 {[%clk 0:01:11]}  Nxg3+ {[%clk 0:02:09]} 20. Rxg3 {[%clk 0:01:10]}  fxe5 {[%clk 0:02:10]} 21. Rfg1 {[%clk 0:00:26]}  e4 {[%clk 0:01:51]} 22. Rxg7+ {[%clk 0:00:23]}  Kh8 {[%clk 0:01:52]} 23. Qe2 {[%clk 0:00:17]}  Bc8 {[%clk 0:01:20]} 24. Qg2 {[%clk 0:00:11]}  Bb7 {[%clk 0:01:07]} 25. Rxb7 {[%clk 0:00:08]}  Rg8 {[%clk 0:01:04]} 26. Rg7 {[%clk 0:00:08]}  Rgf8 {[%clk 0:00:54]} 27. Rg4 {[%clk 0:00:04]}  Qh6 {[%clk 0:00:53]} 28. fxe6 {[%clk 0:00:03]}  Qxe3 {[%clk 0:00:51]} 29. Bc1 {[%clk 0:00:03]}  Qf3 {[%clk 0:00:49]} 30. Qxf3 {[%clk 0:00:03]}  exf3 {[%clk 0:00:50]} 31. Bh6 {[%clk 0:00:02]}  Rg8 {[%clk 0:00:47]} 32. Bg7+ {[%clk 0:00:02]}  Rxg7 {[%clk 0:00:48]} 33. Rxg7 {[%clk 0:00:02]}  f2 {[%clk 0:00:49]} 34. Rf1 {[%clk 0:00:01]}  Kxg7 {[%clk 0:00:48]} 35. Rxf2 {[%clk 0:00:02]}  Re8 {[%clk 0:00:48]} 36. Rf7+ {[%clk 0:00:02]}  Kg6 {[%clk 0:00:47]} 0-1


[Site "https://www.chess.com"]

[Event "Titled Tuesday Blitz April 18 Late 2023"]
[White "Wang, Alexander J"]
[Black "Santos Flores, Alberto"]
[WhiteFideId "30955270"]
[BlackFideId "3601234"]
[WhiteElo "2296"]
[BlackElo "2235"]
[Result "1-0"]
[Round "07"]
[TimeControl "180+2"]
[Date "2023.04.18"]
[WhiteClock "0:00:13"]
[BlackClock "0:00:58"]

1. e4 {[%clk 0:03:00]}  c5 {[%clk 0:03:00]} 2. Nf3 {[%clk 0:02:59]}  Nc6 {[%clk 0:02:59]} 3. d4 {[%clk 0:02:57]}  cxd4 {[%clk 0:03:00]} 4. Nxd4 {[%clk 0:02:58]}  g6 {[%clk 0:03:00]} 5. Nc3 {[%clk 0:02:56]}  Bg7 {[%clk 0:03:00]} 6. Be3 {[%clk 0:02:57]}  Nf6 {[%clk 0:03:00]} 7. Bc4 {[%clk 0:02:56]}  O-O {[%clk 0:02:57]} 8. Bb3 {[%clk 0:02:55]}  d6 {[%clk 0:02:57]} 9. f3 {[%clk 0:02:54]}  Bd7 {[%clk 0:02:57]} 10. Qd2 {[%clk 0:02:54]}  Rc8 {[%clk 0:02:57]} 11. O-O-O {[%clk 0:02:52]}  Ne5 {[%clk 0:02:57]} 12. h4 {[%clk 0:02:52]}  h5 {[%clk 0:02:57]} 13. Kb1 {[%clk 0:02:51]}  a5 {[%clk 0:02:54]} 14. a4 {[%clk 0:02:48]}  Re8 {[%clk 0:02:51]} 15. g4 {[%clk 0:02:43]}  hxg4 {[%clk 0:02:51]} 16. h5 {[%clk 0:02:31]}  Nxh5 {[%clk 0:02:51]} 17. Bh6 {[%clk 0:02:27]}  e6 {[%clk 0:02:33]} 18. Bxg7 {[%clk 0:01:51]}  Kxg7 {[%clk 0:02:34]} 19. fxg4 {[%clk 0:01:48]}  Nxg4 {[%clk 0:02:31]} 20. Rdg1 {[%clk 0:01:48]}  Ngf6 {[%clk 0:02:20]} 21. Qg5 {[%clk 0:01:31]}  Rxc3 {[%clk 0:02:19]} 22. bxc3 {[%clk 0:01:25]}  Rh8 {[%clk 0:02:19]} 23. Nf5+ {[%clk 0:01:14]}  exf5 {[%clk 0:02:18]} 24. exf5 {[%clk 0:01:06]}  Ne4 {[%clk 0:02:11]} 25. Qxd8 {[%clk 0:00:45]}  Rxd8 {[%clk 0:02:11]} 26. Rxh5 {[%clk 0:00:43]}  Nxc3+ {[%clk 0:01:52]} 27. Kb2 {[%clk 0:00:39]}  Nxa4+ {[%clk 0:01:52]} 28. Bxa4 {[%clk 0:00:38]}  Bxa4 {[%clk 0:01:53]} 29. fxg6 {[%clk 0:00:38]}  fxg6 {[%clk 0:01:53]} 30. Rxa5 {[%clk 0:00:38]}  Bc6 {[%clk 0:01:52]} 31. Rag5 {[%clk 0:00:37]}  Be4 {[%clk 0:01:52]} 32. R1g4 {[%clk 0:00:35]}  d5 {[%clk 0:01:51]} 33. Rg1 {[%clk 0:00:29]}  Rc8 {[%clk 0:01:50]} 34. c3 {[%clk 0:00:27]}  b5 {[%clk 0:01:34]} 35. Kb3 {[%clk 0:00:24]}  Rc4 {[%clk 0:01:23]} 36. R5g3 {[%clk 0:00:21]}  d4 {[%clk 0:01:16]} 37. cxd4 {[%clk 0:00:18]}  Rxd4 {[%clk 0:01:17]} 38. Rc1 {[%clk 0:00:17]}  Bf5 {[%clk 0:01:09]} 39. Rc5 {[%clk 0:00:16]}  b4 {[%clk 0:01:07]} 40. Rxf5 {[%clk 0:00:14]}  Kh6 {[%clk 0:01:02]} 41. Rb5 {[%clk 0:00:14]}  Re4 {[%clk 0:00:55]} 42. Rxb4 {[%clk 0:00:14]}  Rxb4+ {[%clk 0:00:55]} 43. Kxb4 {[%clk 0:00:15]}  Kh5 {[%clk 0:00:56]} 44. Kc4 {[%clk 0:00:14]}  g5 {[%clk 0:00:57]} 45. Kd3 {[%clk 0:00:12]}  Kh4 {[%clk 0:00:58]} 46. Rg1 {[%clk 0:00:12]}  g4 {[%clk 0:00:59]} 47. Ke2 {[%clk 0:00:12]}  Kh3 {[%clk 0:00:58]} 48. Kf2 {[%clk 0:00:13]} 1-0


[Site "https://www.chess.com"]

[Event "Titled Tuesday Blitz April 18 Late 2023"]
[White "Nemsko"]
[Black "Shubenkova, Veronika"]
[BlackFideId "44124040"]
[WhiteElo "2293"]
[BlackElo "2027"]
[Result "0-1"]
[Round "07"]
[TimeControl "180+2"]
[Date "2023.04.18"]
[WhiteClock "0:00:01"]
[BlackClock "0:01:21"]

1. d4 {[%clk 0:03:00]}  d5 {[%clk 0:02:59]} 2. Nc3 {[%clk 0:02:58]}  e6 {[%clk 0:02:59]} 3. Bf4 {[%clk 0:02:57]}  c6 {[%clk 0:02:58]} 4. Nf3 {[%clk 0:02:49]}  Nf6 {[%clk 0:02:58]} 5. e3 {[%clk 0:02:49]}  Bd6 {[%clk 0:02:58]} 6. Qd2 {[%clk 0:02:48]}  Na6 {[%clk 0:02:57]} 7. O-O-O {[%clk 0:02:46]}  Nc7 {[%clk 0:02:56]} 8. Bd3 {[%clk 0:02:43]}  b5 {[%clk 0:02:56]} 9. Kb1 {[%clk 0:02:41]}  a5 {[%clk 0:02:56]} 10. Ne5 {[%clk 0:02:37]}  Bb7 {[%clk 0:02:53]} 11. h4 {[%clk 0:02:29]}  a4 {[%clk 0:02:53]} 12. f3 {[%clk 0:02:22]}  Qe7 {[%clk 0:02:50]} 13. Ne2 {[%clk 0:02:20]}  b4 {[%clk 0:02:46]} 14. Nc1 {[%clk 0:02:18]}  c5 {[%clk 0:02:46]} 15. dxc5 {[%clk 0:02:14]}  Bxe5 {[%clk 0:02:45]} 16. Bxe5 {[%clk 0:02:14]}  Qxc5 {[%clk 0:02:45]} 17. Bd4 {[%clk 0:02:09]}  Qe7 {[%clk 0:02:45]} 18. f4 {[%clk 0:02:00]}  O-O {[%clk 0:02:37]} 19. g4 {[%clk 0:01:57]}  Ne4 {[%clk 0:02:36]} 20. Bxe4 {[%clk 0:01:54]}  dxe4 {[%clk 0:02:36]} 21. h5 {[%clk 0:01:50]}  Nd5 {[%clk 0:02:36]} 22. g5 {[%clk 0:01:39]}  Ba6 {[%clk 0:02:31]} 23. Qg2 {[%clk 0:01:31]}  b3 {[%clk 0:02:23]} 24. g6 {[%clk 0:00:39]}  bxc2+ {[%clk 0:02:23]} 25. Kxc2 {[%clk 0:00:37]}  Nb4+ {[%clk 0:02:20]} 26. Kb1 {[%clk 0:00:37]}  fxg6 {[%clk 0:02:16]} 27. hxg6 {[%clk 0:00:37]}  h6 {[%clk 0:02:16]} 28. Qxe4 {[%clk 0:00:34]}  Bb7 {[%clk 0:02:13]} 29. Qe5 {[%clk 0:00:32]}  Bxh1 {[%clk 0:02:12]} 30. Rxh1 {[%clk 0:00:33]}  Nc6 {[%clk 0:02:11]} 31. Qc5 {[%clk 0:00:25]}  Qe8 {[%clk 0:01:58]} 32. Bc3 {[%clk 0:00:21]}  Qxg6+ {[%clk 0:01:57]} 33. Ka1 {[%clk 0:00:21]}  Rac8 {[%clk 0:01:55]} 34. Ne2 {[%clk 0:00:14]}  Rf7 {[%clk 0:01:50]} 35. Rg1 {[%clk 0:00:13]}  Qd3 {[%clk 0:01:47]} 36. Nc1 {[%clk 0:00:11]}  Qe4 {[%clk 0:01:41]} 37. Qb6 {[%clk 0:00:06]}  a3 {[%clk 0:01:37]} 38. Rd1 {[%clk 0:00:04]}  axb2+ {[%clk 0:01:36]} 39. Bxb2 {[%clk 0:00:05]}  Rb8 {[%clk 0:01:34]} 40. Qc5 {[%clk 0:00:04]}  Nb4 {[%clk 0:01:32]} 41. Rd2 {[%clk 0:00:03]}  Qb7 {[%clk 0:01:24]} 42. Nb3 {[%clk 0:00:02]}  Rc8 {[%clk 0:01:23]} 43. Qe5 {[%clk 0:00:01]}  Qh1+ {[%clk 0:01:22]} 44. Nc1 {[%clk 0:00:01]}  Rxc1+ {[%clk 0:01:21]} 0-1


[Site "https://www.chess.com"]

[Event "Titled Tuesday Blitz April 18 Late 2023"]
[White "QuiesPrecatio"]
[Black "Sarkar, Justin"]
[BlackFideId "2010011"]
[WhiteElo "2443"]
[BlackElo "2189"]
[Result "0-1"]
[Round "07"]
[TimeControl "180+2"]
[Date "2023.04.18"]
[WhiteClock "0:00:41"]
[BlackClock "0:00:03"]

1. d4 {[%clk 0:02:58]}  Nf6 {[%clk 0:02:55]} 2. c4 {[%clk 0:02:58]}  e6 {[%clk 0:02:55]} 3. Nf3 {[%clk 0:02:56]}  d5 {[%clk 0:02:55]} 4. Nc3 {[%clk 0:02:52]}  Nbd7 {[%clk 0:02:48]} 5. cxd5 {[%clk 0:02:51]}  exd5 {[%clk 0:02:45]} 6. Bg5 {[%clk 0:02:51]}  h6 {[%clk 0:02:37]} 7. Bh4 {[%clk 0:02:50]}  c6 {[%clk 0:02:25]} 8. e3 {[%clk 0:02:50]}  Bd6 {[%clk 0:02:19]} 9. Bd3 {[%clk 0:02:49]}  O-O {[%clk 0:02:09]} 10. Qc2 {[%clk 0:02:49]}  Re8 {[%clk 0:01:55]} 11. O-O {[%clk 0:02:41]}  Nf8 {[%clk 0:01:38]} 12. Rab1 {[%clk 0:02:34]}  Bg4 {[%clk 0:01:32]} 13. Nd2 {[%clk 0:02:33]}  Bh5 {[%clk 0:01:22]} 14. b4 {[%clk 0:02:29]}  Bg6 {[%clk 0:00:55]} 15. b5 {[%clk 0:02:11]}  Bxd3 {[%clk 0:00:50]} 16. Qxd3 {[%clk 0:02:10]}  Ng6 {[%clk 0:00:43]} 17. Bg3 {[%clk 0:02:09]}  Bxg3 {[%clk 0:00:17]} 18. hxg3 {[%clk 0:02:10]}  Qd6 {[%clk 0:00:17]} 19. bxc6 {[%clk 0:02:04]}  bxc6 {[%clk 0:00:17]} 20. Na4 {[%clk 0:02:04]}  h5 {[%clk 0:00:13]} 21. Rfc1 {[%clk 0:01:56]}  h4 {[%clk 0:00:10]} 22. gxh4 {[%clk 0:01:50]}  Ng4 {[%clk 0:00:04]} 23. Nf3 {[%clk 0:01:49]}  Nxh4 {[%clk 0:00:03]} 24. Qd1 {[%clk 0:00:58]}  Nxf3+ {[%clk 0:00:02]} 25. Qxf3 {[%clk 0:00:59]}  Qh2+ {[%clk 0:00:02]} 26. Kf1 {[%clk 0:00:58]}  Nf6 {[%clk 0:00:01]} 27. Qh3 {[%clk 0:00:53]}  Qxh3 {[%clk 0:00:01]} 28. gxh3 {[%clk 0:00:54]}  Ne4 {[%clk 0:00:01]} 29. Ke2 {[%clk 0:00:52]}  Rab8 {[%clk 0:00:01]} 30. Rxb8 {[%clk 0:00:51]}  Rxb8 {[%clk 0:00:01]} 31. Rxc6 {[%clk 0:00:52]}  Rb4 {[%clk 0:00:02]} 32. Ra6 {[%clk 0:00:47]}  Rxa4 {[%clk 0:00:01]} 33. Rxa4 {[%clk 0:00:42]}  Nc3+ {[%clk 0:00:02]} 34. Kd3 {[%clk 0:00:43]}  Nxa4 {[%clk 0:00:02]} 35. Kc2 {[%clk 0:00:44]}  Nb6 {[%clk 0:00:03]} 36. Kb3 {[%clk 0:00:45]}  a5 {[%clk 0:00:03]} 37. f3 {[%clk 0:00:41]}  f5 {[%clk 0:00:03]} 0-1


[Site "https://www.chess.com"]

[Event "Titled Tuesday Blitz April 18 Late 2023"]
[White "Estrada Nieto, Julian"]
[Black "Tyagi, Kushan"]
[WhiteFideId "5101018"]
[BlackFideId "2040069"]
[WhiteElo "2161"]
[BlackElo "2274"]
[Result "1-0"]
[Round "07"]
[TimeControl "180+2"]
[Date "2023.04.18"]
[WhiteClock "0:00:55"]
[BlackClock "0:00:15"]

1. e4 {[%clk 0:03:00]}  c5 {[%clk 0:02:58]} 2. Nf3 {[%clk 0:03:01]}  e6 {[%clk 0:02:58]} 3. c3 {[%clk 0:03:00]}  Nf6 {[%clk 0:02:58]} 4. e5 {[%clk 0:03:01]}  Nd5 {[%clk 0:02:58]} 5. Bc4 {[%clk 0:03:01]}  Nb6 {[%clk 0:02:57]} 6. Bb3 {[%clk 0:03:02]}  d6 {[%clk 0:02:48]} 7. d4 {[%clk 0:03:01]}  dxe5 {[%clk 0:02:43]} 8. Nxe5 {[%clk 0:03:01]}  N8d7 {[%clk 0:02:37]} 9. Nf3 {[%clk 0:03:01]}  cxd4 {[%clk 0:02:35]} 10. cxd4 {[%clk 0:03:01]}  Nf6 {[%clk 0:02:35]} 11. Nc3 {[%clk 0:03:00]}  Be7 {[%clk 0:02:31]} 12. O-O {[%clk 0:03:00]}  O-O {[%clk 0:02:30]} 13. Ne5 {[%clk 0:02:51]}  Bd7 {[%clk 0:02:18]} 14. Qf3 {[%clk 0:02:50]}  Qc7 {[%clk 0:02:13]} 15. Bf4 {[%clk 0:02:46]}  Bd6 {[%clk 0:01:50]} 16. Rac1 {[%clk 0:02:45]}  Bc6 {[%clk 0:01:36]} 17. Qh3 {[%clk 0:02:17]}  Bxe5 {[%clk 0:01:19]} 18. dxe5 {[%clk 0:01:58]}  Nfd7 {[%clk 0:01:12]} 19. Qg3 {[%clk 0:01:34]}  Rfc8 {[%clk 0:00:59]} 20. Ne4 {[%clk 0:01:30]}  Bxe4 {[%clk 0:00:52]} 21. Rxc7 {[%clk 0:01:28]}  Rxc7 {[%clk 0:00:53]} 22. h4 {[%clk 0:01:21]}  Nc5 {[%clk 0:00:50]} 23. h5 {[%clk 0:01:13]}  Nxb3 {[%clk 0:00:46]} 24. axb3 {[%clk 0:01:13]}  Nd5 {[%clk 0:00:37]} 25. Bh6 {[%clk 0:01:10]}  g6 {[%clk 0:00:33]} 26. Qh4 {[%clk 0:01:02]}  Bf5 {[%clk 0:00:27]} 27. Rd1 {[%clk 0:01:00]}  Rd7 {[%clk 0:00:15]} 28. Rxd5 {[%clk 0:00:58]}  Rxd5 {[%clk 0:00:15]} 29. Qf6 {[%clk 0:00:56]}  Rd1+ {[%clk 0:00:16]} 30. Kh2 {[%clk 0:00:55]}  Rh1+ {[%clk 0:00:15]} 31. Kxh1 {[%clk 0:00:55]}  gxh5 {[%clk 0:00:15]} 32. Qg7# {[%clk 0:00:55]} 1-0


[Site "https://www.chess.com"]